fUST/lending_fUST_20240901
["ID","MTS","AMOUNT","RATE_DAILY","PERIOD"]
[336820172,1725190272151,-1407.61,0.00030043,15]
[336820173,1725190272160,-500.0,0.00030043,15]
[336820174,1725190272170,-3782.96,0.00030043,15]
[336820175,1725190272181,-500.0,0.00030043,15]
[336820176,1725190272192,-1698.8,0.00030043,15]
[336820177,1725190272201,-500.0,0.00030043,15]
[336820178,1725190272210,-618.8,0.00030043,15]
[336820179,1725190272220,-500.0,0.00030043,15]
[336820180,1725190272229,-581.82,0.00030043,15]
[336820181,1725190272239,-1590.55,0.00030043,15]
[336820182,1725190272248,-500.0,0.00030043,15]
[336820183,1725190272257,-500.0,0.00030043,2]
[336820184,1725190272267,-814.38,0.00030043,15]
[336820185,1725190272277,-578.66,0.00030043,15]
[336820186,1725190272286,-500.0,0.00030043,15]
[336820187,1725190272296,-805.46,0.00030043,15]
[336820188,1725190272305,-500.0,0.00030043,15]
[336820189,1725190272315,-1051.47,0.00030043,15]
[336820190,1725190272324,-500.0,0.00030043,15]
[336820191,1725190272334,-500.0,0.00030043,15]
[336820192,1725190272343,-1759.62,0.00030043,15]
[336820193,1725190272352,-914.92,0.00030043,15]
[336820194,1725190272361,-681.67,0.00030043,15]
[336820195,1725190272370,-1238.85,0.00030043,15]
[336820196,1725190272379,-500.0,0.00030043,15]
[336820197,1725190272389,-500.0,0.00030043,15]
[336820198,1725190272398,-500.0,0.00030043,15]
[336820199,1725190272408,-500.0,0.00030043,15]
[336820200,1725190272417,-151.0,0.00030099,7]
[336820201,1725190272427,-187310.84069205,0.000301,30]
[336820202,1725190272436,-1410.7,0.000301,14]
[336820203,1725190272445,-10650.37,0.000301,14]
[336820204,1725190272454,-151.0,0.000301,7]
[336820205,1725190272463,-15671.95352856,0.000301,2]
[336820206,1725190272473,-420.0,0.00030131,2]
[336820207,1725190272483,-5021.96,0.00030133,15]
[336820208,1725190272492,-741.43,0.00030133,15]
[336820209,1725190272501,-1278.04,0.00030133,15]
[336820210,1725190272510,-960.88,0.00030133,15]
[336820211,1725190272520,-1153.21,0.00030133,15]
[336820212,1725190272529,-815.48,0.00030133,15]
[336820213,1725190272538,-21602.6,0.00030133,15]
[336820214,1725190272549,-1097.19,0.00030133,15]
[336820215,1725190272563,-500.0,0.00030133,15]
[336820216,1725190272572,-1235.74,0.00030133,15]
[336820217,1725190272583,-7508.14,0.00030133,15]
[336820218,1725190272592,-4510.39,0.00030133,15]
[336820219,1725190272602,-553.99,0.00030133,15]
[336820220,1725190272611,-5144.95,0.00030133,15]
[336820221,1725190272621,-500.0,0.00030134,15]
[336820222,1725190272632,-1750.1,0.00030134,15]
[336820223,1725190272641,-500.0,0.00030134,15]
[336820224,1725190272651,-2695.32,0.00030134,15]
[336820225,1725190272662,-4145.03,0.00030134,15]
[336820226,1725190272673,-4014.95,0.00030134,15]
[336820227,1725190272684,-500.0,0.00030134,15]
[336820228,1725190272695,-7452.19,0.00030134,15]
[336820229,1725190272705,-32741.1,0.00030134,8]
[336820230,1725190272717,-1410.77,0.00030134,15]
[336820231,1725190272726,-3313.62,0.00030134,15]
[336820232,1725190272738,-533.66,0.00030134,15]
[336820233,1725190272748,-1583.29,0.00030134,15]
[336820234,1725190272759,-521.69064609,0.00030134,15]
[336820235,1725190272770,-2520.25,0.00030134,15]
[336820236,1725190272780,-2691.19,0.00030134,15]
[336820237,1725190272790,-500.0,0.00030134,15]
[336820238,1725190272800,-891.84,0.00030134,15]
[336820239,1725190272809,-1013.73,0.00030134,15]
[336820240,1725190272819,-936.11,0.00030134,15]
[336820241,1725190272828,-3466.34,0.00030134,15]
[336820242,1725190272838,-574.88,0.00030134,15]
[336820243,1725190272846,-4031.65,0.00030134,15]
[336820244,1725190272856,-1852.87,0.00030134,15]
[336820245,1725190272867,-2143.4,0.00030135,15]
[336820246,1725190272877,-500.0,0.00030135,15]
[336820247,1725190272887,-500.0,0.00030135,15]
[336820248,1725190272897,-913.5,0.00030135,15]
[336820249,1725190272906,-957.06,0.00030135,15]
[336820250,1725190272916,-607.13,0.00030135,15]
[336820251,1725190272925,-500.0,0.00030135,15]
[336820252,1725190272937,-1295.04,0.00030135,15]
[336820253,1725190272947,-500.0,0.00030135,15]
[336820254,1725190272958,-500.0,0.00030135,15]
[336820255,1725190272968,-500.0,0.00030135,15]
[336820256,1725190272978,-500.0,0.00030135,15]
[336820257,1725190272987,-540.26,0.00030135,15]
[336820258,1725190272996,-1687.85,0.00030135,15]
[336820259,1725190273006,-1256.23,0.00030135,15]
[336820260,1725190273017,-500.0,0.00030135,15]
[336820261,1725190273027,-670.09,0.00030135,15]
[336820262,1725190273037,-910.82,0.00030135,15]
[336820263,1725190273048,-710.04,0.00030135,15]
[336820264,1725190273058,-500.0,0.00030135,15]
[336820265,1725190273068,-1102.69,0.00030135,15]
[336820266,1725190273078,-1190.65,0.00030135,15]
[336820267,1725190273088,-556.69,0.00030135,15]
[336820268,1725190273098,-2371.33,0.00030135,15]
[336820269,1725190273108,-500.0,0.00030135,15]
[336820270,1725190273118,-560.63,0.00030135,15]
[336820271,1725190273128,-1985.26,0.00030135,15]
[336820272,1725190273137,-6498.82,0.00030135,15]
[336820273,1725190273147,-500.0,0.00030135,15]
[336820274,1725190273156,-542.64,0.00030135,15]
[336820275,1725190273166,-500.0,0.00030135,15]
[336820276,1725190273175,-500.0,0.00030135,15]
[336820277,1725190273185,-500.0,0.00030135,15]
[336820278,1725190273195,-834.9,0.00030135,15]
[336820279,1725190273205,-500.0,0.00030135,15]
[336820280,1725190273215,-1619.73,0.00030135,15]
[336820281,1725190273226,-1079.6,0.00030135,15]
[336820282,1725190273236,-362.27534699,0.00030135,15]
[336820283,1725190273247,-623.31,0.00030135,15]
[336820284,1725190273257,-743.79,0.00030135,15]
[336820285,1725190273268,-500.0,0.00030135,15]
[336820286,1725190273278,-708.75,0.00030135,15]
[336820287,1725190273288,-1914.34,0.00030135,15]
[336820288,1725190273298,-3913.52,0.00030135,15]
[336820289,1725190273308,-5515.16,0.00030135,15]
[336820290,1725190273318,-1204.33,0.00030135,15]
[336820291,1725190273329,-1053.79,0.00030135,15]
[336820292,1725190273338,-500.0,0.00030135,15]
[336820293,1725190273348,-13912.41,0.00030135,15]
[336820294,1725190273358,-500.0,0.00030135,15]
[336820295,1725190273368,-579.21,0.00030135,15]
[336820296,1725190273378,-1301.12,0.00030135,15]
[336820297,1725190273387,-500.0,0.00030135,15]
[336820298,1725190273397,-1121.35,0.00030135,15]
[336820299,1725190273406,-411.85883533,0.00030136,15]
[336820300,1725190273416,-500.0,0.00030136,15]
[336820301,1725190273426,-585.56050782,0.00030136,15]
[336820302,1725190273435,-507.86899914,0.00030136,15]
[336820303,1725190273444,-567.53,0.00030136,15]
[336820304,1725190273578,-1049.89,0.00030136,15]
[336820305,1725190273587,-500.0,0.00030136,15]
[336820306,1725190273598,-500.0,0.00030136,15]
[336820307,1725190273607,-522.95575056,0.00030136,15]
[336820308,1725190273617,-500.0,0.00030136,15]
[336820309,1725190273627,-761.9,0.00030136,15]
[336820310,1725190273637,-795.65,0.00030136,15]
[336820311,1725190273648,-764.37,0.00030136,15]
[336820312,1725190273657,-426.37308199,0.00030136,15]
[336820313,1725190273667,-629.77,0.00030136,15]
[336820314,1725190273676,-1215.96,0.00030136,15]
[336820315,1725190273686,-614.5644295,0.00030136,15]
[336820316,1725190273696,-500.0,0.00030136,15]
[336820317,1725190273705,-528.88123642,0.00030136,15]
[336820318,1725190273715,-1170.7,0.00030136,15]
[336820319,1725190273725,-500.0,0.00030136,15]
[336820320,1725190273735,-500.0,0.00030136,15]
[336820321,1725190273744,-642.09,0.00030136,15]
[336820322,1725190273754,-1085.86,0.00030136,15]
[336820323,1725190273764,-739.39,0.00030136,15]
[336820324,1725190273773,-968.22,0.00030136,15]
[336820325,1725190273783,-500.0,0.00030136,15]
[336820326,1725190273792,-500.0,0.00030136,15]
[336820327,1725190273802,-1115.8,0.00030136,15]
[336820328,1725190273811,-500.0,0.00030136,15]
[336820329,1725190273821,-731.19,0.00030136,15]
[336820330,1725190273831,-535.55,0.00030136,15]
[336820331,1725190273840,-668.48,0.00030136,15]
[336820332,1725190273849,-500.0,0.00030136,15]
[336820333,1725190273859,-8501.03,0.00030136,2]
[336820334,1725190273868,-8501.03,0.00030136,15]
[336820335,1725190273878,-8501.03,0.00030136,15]
[336820336,1725190273887,-8501.03,0.00030136,15]
[336820337,1725190273897,-8501.03,0.00030136,15]
[336820338,1725190273907,-8501.03,0.00030136,15]
[336820339,1725190273916,-8501.03,0.00030136,15]
[336820340,1725190273925,-8501.03,0.00030136,15]
[336820341,1725190273935,-8501.03,0.00030136,15]
[336820342,1725190273944,-8501.03,0.00030136,15]
[336820343,1725190273954,-8501.03,0.00030136,15]
[336820344,1725190273964,-802.33,0.00030136,15]
[336820345,1725190273973,-500.0,0.00030136,15]
[336820346,1725190273982,-500.0,0.00030136,15]
[336820347,1725190273992,-500.0,0.00030136,15]
[336820348,1725190274001,-50000.0,0.00030137,10]
[336820349,1725190274012,-500.0,0.00030205,15]
[336820350,1725190274022,-2000.0,0.00030224,4]
[336820351,1725190274032,-500.0,0.00030273,15]
[336820352,1725190274042,-500.0,0.00030273,7]
[336820353,1725190274051,-786.16,0.00030273,15]
[336820354,1725190274060,-500.0,0.00030273,15]
[336820355,1725190274070,-500.0,0.00030273,15]
[336820356,1725190274080,-500.0,0.00030273,15]
[336820357,1725190274089,-500.0,0.00030273,15]
[336820358,1725190274099,-500.0,0.00030273,15]
[336820359,1725190274109,-540.19,0.00030273,15]
[336820360,1725190274119,-500.0,0.00030273,15]
[336820361,1725190274129,-500.0,0.00030273,15]
[336820362,1725190274139,-500.0,0.00030273,15]
[336820363,1725190274148,-500.0,0.00030273,15]
[336820364,1725190274158,-518.91,0.00030273,15]
[336820365,1725190274168,-500.0,0.00030273,15]
[336820366,1725190274177,-500.0,0.00030273,15]
[336820367,1725190274187,-500.0,0.00030273,15]
[336820368,1725190274197,-661.85,0.00030273,15]
[336820369,1725190274207,-500.0,0.00030273,15]
[336820370,1725190274217,-500.0,0.00030273,15]
[336820371,1725190274227,-913.52,0.00030273,15]
[336820372,1725190274236,-835.91,0.00030273,14]
[336820373,1725190274246,-500.0,0.00030273,15]
[336820374,1725190274256,-724.67,0.00030273,7]
[336820375,1725190274267,-500.0,0.00030273,15]
[336820376,1725190274277,-648.99,0.00030273,15]
[336820377,1725190274286,-500.0,0.00030273,15]
[336820378,1725190274295,-500.0,0.00030273,15]
[336820379,1725190274305,-641.96923986,0.00030273,15]
[336820380,1725190274315,-500.0,0.00030273,15]
[336820381,1725190274325,-500.0,0.00030273,15]
[336820382,1725190274335,-500.0,0.00030273,15]
[336820383,1725190274344,-500.0,0.00030273,15]
[336820384,1725190274354,-942.02,0.00030273,15]
[336820385,1725190274364,-500.0,0.00030273,15]
[336820386,1725190274374,-500.0,0.00030273,15]
[336820387,1725190274384,-509.47967589,0.00030273,15]
[336820388,1725190274393,-500.0,0.00030273,15]
[336820389,1725190274403,-500.0,0.00030273,15]
[336820390,1725190274413,-500.0,0.00030273,15]
[336820391,1725190274423,-500.0,0.00030273,15]
[336820392,1725190274434,-504.9,0.00030273,15]
[336820393,1725190274443,-500.0,0.00030273,15]
[336820394,1725190274454,-1393.67,0.00030273,15]
[336820395,1725190274464,-500.0,0.00030273,15]
[336820396,1725190274474,-500.0,0.00030273,15]
[336820397,1725190274483,-500.0,0.00030273,15]
[336820398,1725190274493,-500.0,0.00030273,15]
[336820399,1725190274503,-500.0,0.00030273,15]
[336820400,1725190274515,-500.0,0.00030273,15]
[336820401,1725190274525,-500.0,0.00030273,15]
[336820402,1725190274536,-500.0,0.00030273,15]
[336820403,1725190274547,-500.0,0.00030273,15]
[336820404,1725190274564,-503.37921185,0.00030273,15]
[336820405,1725190274573,-500.0,0.00030273,15]
[336820406,1725190274583,-500.0,0.00030273,15]
[336820407,1725190274593,-500.0,0.00030273,15]
[336820408,1725190274603,-500.0,0.00030273,15]
[336820409,1725190274613,-500.0,0.00030273,15]
[336820410,1725190274622,-696.53,0.00030273,15]
[336820411,1725190274633,-500.0,0.00030273,15]
[336820412,1725190274643,-500.0,0.00030273,15]
[336820413,1725190274652,-613.05,0.00030273,15]
[336820414,1725190274662,-747.54,0.00030273,15]
[336820415,1725190274672,-500.0,0.00030273,15]
[336820416,1725190274682,-284.92661686,0.00030273,15]
[336820417,1725190274692,-332.60741194,0.00030273,15]
[336820418,1725190274701,-500.0,0.00030273,15]
[336820419,1725190274710,-500.0,0.00030273,15]
[336820420,1725190274720,-500.0,0.00030273,15]
[336820421,1725190274730,-500.0,0.00030273,15]
[336820422,1725190274739,-500.0,0.00030273,15]
[336820423,1725190274749,-500.0,0.00030273,15]
[336820424,1725190274758,-500.0,0.00030273,15]
[336820425,1725190274772,-500.0,0.00030273,15]
[336820426,1725190274782,-805.77,0.00030273,15]
[336820427,1725190274792,-306.81856574,0.00030273,15]
[336820428,1725190274801,-500.0,0.00030273,15]
[336820429,1725190274811,-249.29201884,0.00030273,15]
[336820430,1725190274820,-500.0,0.00030273,15]
[336820431,1725190274829,-504.31194058,0.00030273,15]
[336820432,1725190274839,-500.0,0.00030273,15]
[336820433,1725190274848,-500.0,0.00030273,15]
[336820434,1725190274858,-500.0,0.00030273,15]
[336820435,1725190274868,-305.15850004,0.00030298,2]
[336820436,1725190274878,-1329.93,0.000303,7]
[336820437,1725190274888,-495.75651572,0.000303,2]
[336820438,1725190274898,-775.42,0.00030317,15]
[336820439,1725190274908,-959.6,0.00030317,15]
[336820440,1725190274917,-842.14,0.00030317,15]
[336820441,1725190274927,-621.06,0.00030317,15]
[336820442,1725190274937,-500.0,0.00030317,15]
[336820443,1725190274947,-500.0,0.00030317,15]
[336820444,1725190274957,-500.0,0.00030317,15]
[336820445,1725190274966,-764.71,0.00030317,15]
[336820446,1725190274976,-635.02009866,0.00030317,15]
[336820447,1725190274985,-902.52,0.00030317,15]
[336820448,1725190274996,-504.7,0.00030317,15]
[336820449,1725190275006,-608.1,0.00030317,15]
[336820450,1725190275018,-500.0,0.00030317,15]
[336820451,1725190275028,-500.0,0.00030317,15]
[336820452,1725190275037,-500.0,0.00030317,15]
[336820453,1725190275046,-500.0,0.00030317,15]
[336820454,1725190275056,-639.82,0.00030317,15]
[336820455,1725190275066,-500.0,0.00030317,15]
[336820456,1725190275076,-514.88839739,0.00030317,15]
[336820457,1725190275086,-1407.61,0.00030317,15]
[336820458,1725190275095,-500.0,0.00030317,15]
[336820459,1725190275106,-3782.96,0.00030317,15]
[336820460,1725190275116,-500.0,0.00030317,15]
[336820461,1725190275126,-1698.8,0.00030317,15]
[336820462,1725190275135,-500.0,0.00030317,15]
[336820463,1725190275145,-618.8,0.00030317,15]
[336820464,1725190275155,-500.0,0.00030317,15]
[336820465,1725190275165,-581.82,0.00030317,15]
[336820466,1725190275174,-1590.55,0.00030317,15]
[336820467,1725190275184,-500.0,0.00030317,15]
[336820468,1725190275194,-500.0,0.00030317,2]
[336820469,1725190275204,-814.38,0.00030317,15]
[336820470,1725190275213,-578.66,0.00030317,15]
[336820471,1725190275223,-396.58583433,0.00030317,15]
[336820472,1725190275232,-805.46,0.00030317,15]
[336820473,1725190275243,-500.0,0.00030317,15]
[336820474,1725190275253,-1051.47,0.00030317,15]
[336820475,1725190275263,-500.0,0.00030317,15]
[336820476,1725190275273,-500.0,0.00030317,15]
[336820477,1725190275282,-1759.62,0.00030317,15]
[336820478,1725190275292,-914.92,0.00030317,15]
[336820479,1725190275301,-681.67,0.00030317,15]
[336820480,1725190275311,-1238.85,0.00030317,15]
[336820481,1725190275320,-500.0,0.00030317,15]
[336820482,1725190275330,-500.0,0.00030317,15]
[336820483,1725190275340,-500.0,0.00030317,15]
[336820484,1725190275349,-500.0,0.00030317,15]
[336820485,1725190275360,-151.0,0.00030363,5]
[336820486,1725190275369,-2808.93,0.000304,14]
[336820487,1725190275379,-3000.0,0.000304,4]
[336820488,1725190275389,-3000.0,0.000304,4]
[336820489,1725190275398,-150.0,0.000304,2]
[336820490,1725190275408,-5021.96,0.00030407,15]
[336820491,1725190275418,-741.43,0.00030407,15]
[336820492,1725190275427,-1278.04,0.00030407,15]
[336820493,1725190275438,-960.88,0.00030407,15]
[336820494,1725190275448,-1153.21,0.00030407,15]
[336820495,1725190275457,-815.48,0.00030407,15]
[336820496,1725190275467,-21602.6,0.00030407,15]
[336820497,1725190275476,-1097.19,0.00030407,15]
[336820498,1725190275487,-500.0,0.00030407,15]
[336820499,1725190275496,-1235.74,0.00030407,15]
[336820500,1725190275506,-7508.14,0.00030407,15]
[336820501,1725190275516,-4510.39,0.00030407,15]
[336820502,1725190275526,-553.99,0.00030407,15]
[336820503,1725190275536,-5144.95,0.00030407,15]
[336820504,1725190275546,-500.0,0.00030408,15]
[336820505,1725190275561,-1750.1,0.00030408,15]
[336820506,1725190275570,-500.0,0.00030408,15]
[336820507,1725190275580,-2695.32,0.00030408,15]
[336820508,1725190275590,-4145.03,0.00030408,15]
[336820509,1725190275601,-4014.95,0.00030408,15]
[336820510,1725190275611,-500.0,0.00030408,15]
[336820511,1725190275620,-7452.19,0.00030408,15]
[336820512,1725190275630,-32741.1,0.00030408,8]
[336820513,1725190275639,-1410.77,0.00030408,15]
[336820514,1725190275650,-3313.62,0.00030408,15]
[336820515,1725190275661,-533.66,0.00030408,15]
[336820516,1725190275671,-1583.29,0.00030408,15]
[336820517,1725190275680,-2691.19,0.00030408,15]
[336820518,1725190275690,-2520.25,0.00030408,15]
[336820519,1725190275699,-500.0,0.00030408,15]
[336820520,1725190275708,-891.84,0.00030408,15]
[336820521,1725190275719,-1013.73,0.00030408,15]
[336820522,1725190275728,-8501.03,0.00030408,15]
[336820523,1725190275738,-936.11,0.00030408,15]
[336820524,1725190275747,-3466.34,0.00030408,15]
[336820525,1725190275757,-574.88,0.00030408,15]
[336820526,1725190275768,-4031.65,0.00030408,15]
[336820527,1725190275778,-1852.87,0.00030408,15]
[336820528,1725190275787,-150.01,0.00030409,2]
[336820529,1725190275796,-2143.4,0.00030409,15]
[336820530,1725190275806,-500.0,0.00030409,15]
[336820531,1725190275815,-500.0,0.00030409,15]
[336820532,1725190275825,-913.5,0.00030409,15]
[336820533,1725190275834,-957.06,0.00030409,15]
[336820534,1725190275843,-607.13,0.00030409,15]
[336820535,1725190275852,-500.0,0.00030409,15]
[336820536,1725190275862,-1295.04,0.00030409,15]
[336820537,1725190275871,-500.0,0.00030409,15]
[336820538,1725190275880,-500.0,0.00030409,15]
[336820539,1725190275890,-500.0,0.00030409,15]
[336820540,1725190275899,-500.0,0.00030409,15]
[336820541,1725190275908,-540.26,0.00030409,15]
[336820542,1725190275918,-1687.85,0.00030409,15]
[336820543,1725190275927,-1256.23,0.00030409,15]
[336820544,1725190275936,-500.0,0.00030409,15]
[336820545,1725190275946,-670.09,0.00030409,15]
[336820546,1725190275956,-910.82,0.00030409,15]
[336820547,1725190275966,-710.04,0.00030409,15]
[336820548,1725190275975,-500.0,0.00030409,15]
[336820549,1725190275985,-1102.69,0.00030409,15]
[336820550,1725190275997,-1190.65,0.00030409,15]
[336820551,1725190276007,-556.69,0.00030409,15]
[336820552,1725190276021,-2371.33,0.00030409,15]
[336820553,1725190276032,-500.0,0.00030409,15]
[336820554,1725190276046,-560.63,0.00030409,15]
[336820555,1725190276059,-1985.26,0.00030409,15]
[336820556,1725190276068,-6498.82,0.00030409,15]
[336820557,1725190276080,-500.0,0.00030409,15]
[336820558,1725190276091,-542.64,0.00030409,15]
[336820559,1725190276103,-500.0,0.00030409,15]
[336820560,1725190276115,-500.0,0.00030409,15]
[336820561,1725190276124,-500.0,0.00030409,15]
[336820562,1725190276134,-834.9,0.00030409,15]
[336820563,1725190276146,-500.0,0.00030409,15]
[336820564,1725190276156,-1619.73,0.00030409,15]
[336820565,1725190276166,-1079.6,0.00030409,15]
[336820566,1725190276176,-623.31,0.00030409,15]
[336820567,1725190276185,-743.79,0.00030409,15]
[336820568,1725190276194,-500.0,0.00030409,15]
[336820569,1725190276204,-708.75,0.00030409,15]
[336820570,1725190276213,-1914.34,0.00030409,15]
[336820571,1725190276223,-3913.52,0.00030409,15]
[336820572,1725190276232,-5515.16,0.00030409,15]
[336820573,1725190276241,-1204.33,0.00030409,15]
[336820574,1725190276364,-1053.79,0.00030409,15]
[336820575,1725190276377,-3179.48313631,0.00030409,2]
[336820576,1725190276387,-500.0,0.00030409,15]
[336820577,1725190276397,-500.0,0.00030409,15]
[336820578,1725190276409,-13912.41,0.00030409,15]
[336820579,1725190276419,-579.21,0.00030409,15]
[336820580,1725190276432,-1301.12,0.00030409,15]
[336820581,1725190276442,-500.0,0.00030409,15]
[336820582,1725190276452,-1121.35,0.00030409,15]
[336820583,1725190276463,-500.0,0.0003041,15]
[336820584,1725190276472,-567.53,0.0003041,15]
[336820585,1725190276481,-1049.89,0.0003041,15]
[336820586,1725190276490,-500.0,0.0003041,15]
[336820587,1725190276499,-500.0,0.0003041,15]
[336820588,1725190276509,-500.0,0.0003041,15]
[336820589,1725190276518,-761.9,0.0003041,15]
[336820590,1725190276527,-3000.0,0.0003041,4]
[336820591,1725190276536,-795.65,0.0003041,15]
[336820592,1725190276546,-3000.0,0.0003041,4]
[336820593,1725190276559,-764.37,0.0003041,15]
[336820594,1725190276568,-629.77,0.0003041,15]
[336820595,1725190276577,-1215.96,0.0003041,15]
[336820596,1725190276586,-500.0,0.0003041,15]
[336820597,1725190276596,-1170.7,0.0003041,15]
[336820598,1725190276605,-500.0,0.0003041,15]
[336820599,1725190276615,-500.0,0.0003041,15]
[336820600,1725190276624,-642.09,0.0003041,15]
[336820601,1725190276634,-1085.86,0.0003041,15]
[336820602,1725190276643,-739.39,0.0003041,15]
[336820603,1725190276653,-968.22,0.0003041,15]
[336820604,1725190276662,-500.0,0.0003041,15]
[336820605,1725190276671,-500.0,0.0003041,15]
[336820606,1725190276681,-1115.8,0.0003041,15]
[336820607,1725190276691,-500.0,0.0003041,15]
[336820608,1725190276700,-731.19,0.0003041,15]
[336820609,1725190276709,-535.55,0.0003041,15]
[336820610,1725190276719,-668.48,0.0003041,15]
[336820611,1725190276728,-500.0,0.0003041,15]
[336820612,1725190276738,-802.33,0.0003041,15]
[336820613,1725190276747,-500.0,0.0003041,15]
[336820614,1725190276757,-500.0,0.0003041,15]
[336820615,1725190276766,-500.0,0.0003041,15]
[336820616,1725190276776,-3000.0,0.0003042,4]
[336820617,1725190276785,-3000.0,0.0003042,4]
[336820618,1725190276795,-3000.0,0.0003043,4]
[336820619,1725190276804,-3000.0,0.0003043,4]
[336820620,1725190276813,-3000.0,0.0003044,4]
[336820621,1725190276823,-3000.0,0.0003044,4]
[336820622,1725190276832,-3000.0,0.0003045,4]
[336820623,1725190276841,-3000.0,0.0003045,4]
[336820624,1725190276850,-155.0,0.0003045,23]
[336820625,1725190276860,-3000.0,0.0003046,4]
[336820626,1725190276870,-3000.0,0.0003046,4]
[336820627,1725190276879,-638.6505,0.00030462,30]
[336820628,1725190276889,-3000.0,0.0003047,4]
[336820629,1725190276899,-3000.0,0.0003047,4]
[336820630,1725190276908,-1039.12265841,0.00030473,2]
[336820631,1725190276918,-500.0,0.00030479,15]
[336820632,1725190276927,-3000.0,0.0003048,4]
[336820633,1725190276936,-3000.0,0.0003048,4]
[336820634,1725190276945,-3000.0,0.0003049,4]
[336820635,1725190276955,-3000.0,0.0003049,4]
[336820636,1725190276964,-3000.0,0.000305,4]
[336820637,1725190276974,-3000.0,0.000305,4]
[336820638,1725190276983,-308.643615,0.00030504,2]
[336820639,1725190276992,-246.245099,0.00030504,2]
[336820640,1725190277002,-294.262996,0.00030504,2]
[336820641,1725190277012,-212.273519,0.00030504,2]
[336820642,1725190277022,-356.725341,0.00030504,2]
[336820643,1725190277031,-387.605101,0.00030504,2]
[336820644,1725190277041,-163.668162,0.00030504,2]
[336820645,1725190277051,-154.031201,0.00030504,2]
[336820646,1725190277061,-203.211537,0.00030504,2]
[336820647,1725190277071,-294.262995,0.00030504,2]
[336820648,1725190277080,-163.73613,0.00030504,2]
[336820649,1725190277089,-176.400814,0.00030504,2]
[336820650,1725190277099,-152.155589,0.00030504,2]
[336820651,1725190277108,-164.816459,0.00030504,2]
[336820652,1725190277118,-160.156146,0.00030504,2]
[336820653,1725190277128,-152.216633,0.00030504,2]
[336820654,1725190277138,-212.273518,0.00030504,2]
[336820655,1725190277148,-294.262995,0.00030504,2]
[336820656,1725190277160,-155.845771,0.00030504,2]
[336820657,1725190277169,-152.216633,0.00030504,2]
[336820658,1725190277179,-202.654079,0.00030504,2]
[336820659,1725190277188,-167.146327,0.00030504,2]
[336820660,1725190277198,-167.983159,0.00030504,2]
[336820661,1725190277207,-186.763523,0.00030504,2]
[336820662,1725190277217,-164.816459,0.00030504,2]
[336820663,1725190277226,-186.121691,0.00030504,2]
[336820664,1725190277237,-183.632406,0.00030504,2]
[336820665,1725190277246,-254.480535,0.00030504,2]
[336820666,1725190277257,-294.262995,0.00030504,2]
[336820667,1725190277267,-1000.0,0.00030505,2]
[336820668,1725190277276,-3000.0,0.0003051,4]
[336820669,1725190277286,-3000.0,0.0003051,4]
[336820670,1725190277296,-3000.0,0.0003052,4]
[336820671,1725190277305,-3000.0,0.0003052,4]